[Event "Early-Titled-Tuesday-Blitz-April-02-2024"]
[Site "Chess.com"]
[Date "2024.04.02"]
[Round "2"]
[White "PapaieDudu"]
[Black "sokidze"]
[Result "0-1"]
[WhiteElo "2395"]
[BlackElo "2783"]
[TimeControl "180+1"]
[EndTime "8:17:20 PDT"]
[Termination "sokidze won on time"]

1. Nf3 {[%clk 0:03:00.9]} 1... d5 {[%clk 0:02:59.7]} 2. d4 {[%clk 0:03:01.1]}
2... Nf6 {[%clk 0:02:59.4]} 3. c4 {[%clk 0:03:01.6]} 3... e6 {[%clk 0:02:59.7]}
4. Nc3 {[%clk 0:03:01.3]} 4... a6 {[%clk 0:02:59]} 5. a4 {[%clk 0:03:00.7]} 5...
Bb4 {[%clk 0:02:49.6]} 6. Bg5 {[%clk 0:02:57.3]} 6... h6 {[%clk 0:02:41.3]} 7.
Bh4 {[%clk 0:02:57.2]} 7... dxc4 {[%clk 0:02:39.9]} 8. e3 {[%clk 0:02:56.6]}
8... O-O {[%clk 0:02:36.4]} 9. Bxc4 {[%clk 0:02:55.9]} 9... b6 {[%clk
0:02:35.9]} 10. O-O {[%clk 0:02:55.6]} 10... Bb7 {[%clk 0:02:36]} 11. Qe2 {[%clk
0:02:52.3]} 11... Nbd7 {[%clk 0:02:34.8]} 12. Rfd1 {[%clk 0:02:50.5]} 12... Qc8
{[%clk 0:02:12]} 13. Rac1 {[%clk 0:02:45.3]} 13... c5 {[%clk 0:01:56.6]} 14. Bg3
{[%clk 0:02:38.4]} 14... Ne4 {[%clk 0:01:40.9]} 15. Nxe4 {[%clk 0:02:30.8]}
15... Bxe4 {[%clk 0:01:40.9]} 16. Bd6 {[%clk 0:02:27.3]} 16... Rd8 {[%clk
0:01:38.3]} 17. Nd2 {[%clk 0:02:16.7]} 17... Bxg2 {[%clk 0:01:32.7]} 18. Kxg2
{[%clk 0:01:55.9]} 18... Qc6+ {[%clk 0:01:27]} 19. f3 {[%clk 0:01:20.9]} 19...
Qxd6 {[%clk 0:01:26.6]} 20. Ne4 {[%clk 0:01:18.7]} 20... Qe7 {[%clk 0:01:24.9]}
21. d5 {[%clk 0:01:19.1]} 21... Ne5 {[%clk 0:00:46.8]} 22. d6 {[%clk 0:00:52.8]}
22... Qb7 {[%clk 0:00:43.7]} 23. Ba2 {[%clk 0:00:52.3]} 23... Kh8 {[%clk
0:00:39.4]} 24. Bb1 {[%clk 0:00:50.5]} 24... f5 {[%clk 0:00:37.9]} 25. Ng3
{[%clk 0:00:45]} 25... Qc6 {[%clk 0:00:36.2]} 26. e4 {[%clk 0:00:42.8]} 26... f4
{[%clk 0:00:27.2]} 27. Nh5 {[%clk 0:00:38.7]} 27... Rf8 {[%clk 0:00:26.8]} 28.
b3 {[%clk 0:00:03.6]} 28... Qe8 {[%clk 0:00:21.5]} 0-1

[Event "Early-Titled-Tuesday-Blitz-April-02-2024"]
[Site "Chess.com"]
[Date "2024.04.02"]
[Round "2"]
[White "Ergali_Suleimen"]
[Black "martinmena"]
[Result "1-0"]
[WhiteElo "2456"]
[BlackElo "2163"]
[TimeControl "180+1"]
[EndTime "8:17:20 PDT"]
[Termination "Ergali_Suleimen won by checkmate"]

1. e4 {[%clk 0:03:00.9]} 1... c6 {[%clk 0:02:59.6]} 2. d4 {[%clk 0:02:59.8]}
2... d5 {[%clk 0:03:00.5]} 3. e5 {[%clk 0:02:59.4]} 3... Bf5 {[%clk 0:02:56]} 4.
h4 {[%clk 0:02:59.5]} 4... h5 {[%clk 0:02:54.8]} 5. c4 {[%clk 0:02:55.2]} 5...
e6 {[%clk 0:02:54.3]} 6. Nc3 {[%clk 0:02:55.4]} 6... Ne7 {[%clk 0:02:53.5]} 7.
Nge2 {[%clk 0:02:53.3]} 7... dxc4 {[%clk 0:02:51.8]} 8. Ng3 {[%clk 0:02:53.5]}
8... Bg6 {[%clk 0:02:51.2]} 9. Bxc4 {[%clk 0:02:53.1]} 9... Nd5 {[%clk
0:02:51.5]} 10. Bg5 {[%clk 0:02:23]} 10... Be7 {[%clk 0:02:51.6]} 11. Qd2 {[%clk
0:02:19.7]} 11... Nxc3 {[%clk 0:02:38.7]} 12. bxc3 {[%clk 0:02:18.2]} 12... Nd7
{[%clk 0:02:38]} 13. Bd3 {[%clk 0:02:11.8]} 13... Bxd3 {[%clk 0:02:36.7]} 14.
Qxd3 {[%clk 0:02:12.7]} 14... Bxg5 {[%clk 0:02:35.5]} 15. hxg5 {[%clk
0:02:13.6]} 15... Qxg5 {[%clk 0:02:24]} 16. Ne4 {[%clk 0:02:11.1]} 16... Qxg2
{[%clk 0:02:23.4]} 17. Nd6+ {[%clk 0:02:06.4]} 17... Ke7 {[%clk 0:02:21.3]} 18.
O-O-O {[%clk 0:02:05.8]} 18... g6 {[%clk 0:02:03.2]} 19. Rhg1 {[%clk 0:01:59.4]}
19... Qd5 {[%clk 0:01:48.4]} 20. Nxf7 {[%clk 0:00:47.6]} 20... Rhf8 {[%clk
0:01:21.7]} 21. Nd6 {[%clk 0:00:47]} 21... Qxa2 {[%clk 0:01:00.8]} 22. f3 {[%clk
0:00:42.9]} 22... Qd5 {[%clk 0:00:25.5]} 23. Rxg6 {[%clk 0:00:39.8]} 23... Rxf3
{[%clk 0:00:13.5]} 24. Qd2 {[%clk 0:00:37.5]} 24... Qb3 {[%clk 0:00:10.2]} 25.
Qg5+ {[%clk 0:00:36]} 25... Nf6 {[%clk 0:00:02.7]} 26. exf6+ {[%clk 0:00:26.4]}
26... Kxd6 {[%clk 0:00:02.9]} 27. Qc5+ {[%clk 0:00:23.7]} 27... Kd7 {[%clk
0:00:02.7]} 28. Qe7+ {[%clk 0:00:21.7]} 28... Kc8 {[%clk 0:00:02.5]} 29. Rg8#
{[%clk 0:00:22.6]} 1-0

[Event "Early-Titled-Tuesday-Blitz-April-02-2024"]
[Site "Chess.com"]
[Date "2024.04.02"]
[Round "2"]
[White "rezamahdavi2008"]
[Black "emeli_chess"]
[Result "1-0"]
[WhiteElo "2891"]
[BlackElo "2405"]
[TimeControl "180+1"]
[EndTime "8:17:21 PDT"]
[Termination "rezamahdavi2008 won by resignation"]

1. e4 {[%clk 0:02:59.1]} 1... e5 {[%clk 0:02:59.4]} 2. Nf3 {[%clk 0:02:57.2]}
2... Nc6 {[%clk 0:02:59.4]} 3. Bc4 {[%clk 0:02:57.8]} 3... Nf6 {[%clk 0:02:59]}
4. d3 {[%clk 0:02:57.9]} 4... Be7 {[%clk 0:02:58.5]} 5. Nc3 {[%clk 0:02:50.3]}
5... d6 {[%clk 0:02:57.4]} 6. a4 {[%clk 0:02:50.9]} 6... a5 {[%clk 0:02:56.6]}
7. h3 {[%clk 0:02:45.4]} 7... O-O {[%clk 0:02:55.9]} 8. O-O {[%clk 0:02:41.6]}
8... Be6 {[%clk 0:02:54.7]} 9. Nd5 {[%clk 0:02:41.8]} 9... Bxd5 {[%clk
0:02:52.9]} 10. exd5 {[%clk 0:02:42.7]} 10... Nd4 {[%clk 0:02:53.3]} 11. Nxd4
{[%clk 0:02:39.6]} 11... exd4 {[%clk 0:02:53.4]} 12. Qf3 {[%clk 0:02:38.1]}
12... Nd7 {[%clk 0:02:52.2]} 13. Qg3 {[%clk 0:02:34.9]} 13... Bh4 {[%clk
0:02:44.3]} 14. Qg4 {[%clk 0:02:32.2]} 14... Bf6 {[%clk 0:02:42.9]} 15. f4
{[%clk 0:02:32.2]} 15... Re8 {[%clk 0:02:33.1]} 16. Bd2 {[%clk 0:02:32.2]} 16...
g6 {[%clk 0:02:03.9]} 17. Rae1 {[%clk 0:02:21.7]} 17... Rxe1 {[%clk 0:01:58.5]}
18. Rxe1 {[%clk 0:02:22.6]} 18... Bg7 {[%clk 0:01:58.8]} 19. Qf3 {[%clk
0:02:09.6]} 19... f5 {[%clk 0:01:50.2]} 20. Bb5 {[%clk 0:02:01.3]} 20... Nf8
{[%clk 0:01:47.8]} 21. Re8 {[%clk 0:01:55.6]} 21... Qxe8 {[%clk 0:01:47.7]} 22.
Bxe8 {[%clk 0:01:56.5]} 22... Rxe8 {[%clk 0:01:48]} 23. Bxa5 {[%clk 0:01:57.4]}
23... b6 {[%clk 0:01:47.8]} 24. Bd2 {[%clk 0:01:57.1]} 24... Nd7 {[%clk
0:01:47.3]} 25. b4 {[%clk 0:01:56.9]} 25... Ra8 {[%clk 0:01:45.5]} 26. a5 {[%clk
0:01:55.4]} 26... b5 {[%clk 0:01:26.7]} 27. Qe2 {[%clk 0:01:51.2]} 27... Kf8
{[%clk 0:01:16]} 28. Qe1 {[%clk 0:00:34.8]} 28... Re8 {[%clk 0:01:11.2]} 29. Qa1
{[%clk 0:00:33.6]} 29... Ra8 {[%clk 0:01:06.2]} 30. Be1 {[%clk 0:00:32]} 30...
Nb8 {[%clk 0:01:03.4]} 31. Bf2 {[%clk 0:00:31.1]} 31... Na6 {[%clk 0:01:03.2]}
32. Bxd4 {[%clk 0:00:30.9]} 32... Bh6 {[%clk 0:00:57.7]} 33. c4 {[%clk
0:00:24.9]} 33... bxc4 {[%clk 0:00:53.9]} 34. b5 {[%clk 0:00:25.8]} 34... Nc5
{[%clk 0:00:49.5]} 35. Bxc5 {[%clk 0:00:25.3]} 35... dxc5 {[%clk 0:00:50]} 36.
dxc4 {[%clk 0:00:26]} 36... Bg7 {[%clk 0:00:49.7]} 37. Qa3 {[%clk 0:00:24.4]}
37... Bd4+ {[%clk 0:00:48.9]} 38. Kh2 {[%clk 0:00:24.5]} 38... Ke7 {[%clk
0:00:46.7]} 39. Qa2 {[%clk 0:00:20.8]} 39... Kd7 {[%clk 0:00:46.2]} 40. b6
{[%clk 0:00:19.7]} 40... cxb6 {[%clk 0:00:45.1]} 41. Qa4+ {[%clk 0:00:20.3]}
41... Ke7 {[%clk 0:00:44]} 42. a6 {[%clk 0:00:20.5]} 42... Ra7 {[%clk
0:00:40.6]} 43. Qc6 {[%clk 0:00:20.7]} 43... Rxa6 {[%clk 0:00:40.5]} 44. Qb7+
{[%clk 0:00:20.7]} 1-0

[Event "Early-Titled-Tuesday-Blitz-April-02-2024"]
[Site "Chess.com"]
[Date "2024.04.02"]
[Round "2"]
[White "ketster"]
[Black "Aygehovit1992"]
[Result "1-0"]
[WhiteElo "2612"]
[BlackElo "2852"]
[TimeControl "180+1"]
[EndTime "8:17:22 PDT"]
[Termination "ketster won by checkmate"]

1. d4 {[%clk 0:03:00.9]} 1... Nf6 {[%clk 0:02:59]} 2. c4 {[%clk 0:03:01]} 2...
g6 {[%clk 0:02:59.5]} 3. Nc3 {[%clk 0:03:00.8]} 3... Bg7 {[%clk 0:03:00.2]} 4.
e4 {[%clk 0:03:01.2]} 4... d6 {[%clk 0:03:00.2]} 5. Nge2 {[%clk 0:03:01.7]} 5...
Nc6 {[%clk 0:02:58.5]} 6. d5 {[%clk 0:02:59.9]} 6... Ne5 {[%clk 0:02:58.5]} 7.
Ng3 {[%clk 0:02:58.3]} 7... h5 {[%clk 0:02:57]} 8. f4 {[%clk 0:02:54.2]} 8...
Ned7 {[%clk 0:02:56.9]} 9. Be2 {[%clk 0:02:50.8]} 9... h4 {[%clk 0:02:56.9]} 10.
Nf1 {[%clk 0:02:51.3]} 10... Nc5 {[%clk 0:02:55.3]} 11. Nd2 {[%clk 0:02:35.9]}
11... a5 {[%clk 0:02:55.4]} 12. O-O {[%clk 0:02:31.2]} 12... Nh5 {[%clk
0:02:55.7]} 13. Nf3 {[%clk 0:02:24.2]} 13... c6 {[%clk 0:02:51.2]} 14. Be3
{[%clk 0:02:23.8]} 14... Bxc3 {[%clk 0:02:24.5]} 15. Bxc5 {[%clk 0:01:59.1]}
15... Bxb2 {[%clk 0:02:11.9]} 16. Bd4 {[%clk 0:01:53.7]} 16... Bxd4+ {[%clk
0:02:11]} 17. Qxd4 {[%clk 0:01:54.6]} 17... Rh6 {[%clk 0:01:54]} 18. e5 {[%clk
0:01:43.2]} 18... c5 {[%clk 0:01:50]} 19. Qe3 {[%clk 0:01:41.5]} 19... h3 {[%clk
0:01:44.3]} 20. f5 {[%clk 0:01:36]} 20... hxg2 {[%clk 0:01:44.3]} 21. Rf2 {[%clk
0:01:18.8]} 21... Rh8 {[%clk 0:01:42.9]} 22. fxg6 {[%clk 0:01:12.3]} 22... fxg6
{[%clk 0:01:36.1]} 23. e6 {[%clk 0:01:11.9]} 23... Qb6 {[%clk 0:01:36.4]} 24.
Bd3 {[%clk 0:01:01.6]} 24... Kd8 {[%clk 0:01:25.2]} 25. Rb1 {[%clk 0:01:00.2]}
25... Qa7 {[%clk 0:01:24.7]} 26. Ng5 {[%clk 0:00:56.8]} 26... Kc7 {[%clk
0:01:24.6]} 27. Rf7 {[%clk 0:00:51.7]} 27... Re8 {[%clk 0:01:23.5]} 28. Bxg6
{[%clk 0:00:50]} 28... Nf6 {[%clk 0:01:23.7]} 29. Rxf6 {[%clk 0:00:37.4]} 29...
Rg8 {[%clk 0:01:21]} 30. Bh7 {[%clk 0:00:26.8]} 30... exf6 {[%clk 0:01:18.6]}
31. Bxg8 {[%clk 0:00:26.2]} 31... fxg5 {[%clk 0:01:19.1]} 32. Qxg5 {[%clk
0:00:25.5]} 32... Qa6 {[%clk 0:01:18.3]} 33. Qe7+ {[%clk 0:00:21.6]} 33... Kb8
{[%clk 0:01:18.7]} 34. Rb5 {[%clk 0:00:21.1]} 34... Ka7 {[%clk 0:01:14.7]} 35.
Qc7 {[%clk 0:00:19.6]} 35... a4 {[%clk 0:00:44.9]} 36. Ra5 {[%clk 0:00:19.1]}
36... a3 {[%clk 0:00:41.7]} 37. Rxa6+ {[%clk 0:00:18.6]} 37... Kxa6 {[%clk
0:00:42.6]} 38. e7 {[%clk 0:00:18]} 38... Bf5 {[%clk 0:00:40.6]} 39. Qxd6+
{[%clk 0:00:16.4]} 39... b6 {[%clk 0:00:40.8]} 40. Bf7 {[%clk 0:00:15.6]} 40...
Bb1 {[%clk 0:00:40.3]} 41. e8=Q {[%clk 0:00:14.5]} 41... Rxe8 {[%clk 0:00:40.6]}
42. Bxe8 {[%clk 0:00:15.4]} 42... Bxa2 {[%clk 0:00:41.4]} 43. Qc6 {[%clk
0:00:14.4]} 43... Bxc4 {[%clk 0:00:39.3]} 44. Qa8# {[%clk 0:00:14.2]} 1-0

[Event "Early-Titled-Tuesday-Blitz-April-02-2024"]
[Site "Chess.com"]
[Date "2024.04.02"]
[Round "2"]
[White "Fy_Rakotomaharo"]
[Black "flawian2008"]
[Result "0-1"]
[WhiteElo "2696"]
[BlackElo "2476"]
[TimeControl "180+1"]
[EndTime "8:17:23 PDT"]
[Termination "flawian2008 won on time"]

1. e4 {[%clk 0:02:56]} 1... c5 {[%clk 0:03:00.4]} 2. Nf3 {[%clk 0:02:55.7]} 2...
Nc6 {[%clk 0:03:01.1]} 3. d4 {[%clk 0:02:55.5]} 3... cxd4 {[%clk 0:03:02]} 4.
Nxd4 {[%clk 0:02:55.9]} 4... g6 {[%clk 0:03:02.7]} 5. c4 {[%clk 0:02:54.1]} 5...
Nf6 {[%clk 0:03:03.2]} 6. Nc3 {[%clk 0:02:54.4]} 6... Nxd4 {[%clk 0:03:04]} 7.
Qxd4 {[%clk 0:02:54.3]} 7... d6 {[%clk 0:03:04.8]} 8. Be2 {[%clk 0:02:52.6]}
8... Bg7 {[%clk 0:03:05.4]} 9. Be3 {[%clk 0:02:53.2]} 9... O-O {[%clk
0:03:06.1]} 10. Qd3 {[%clk 0:02:53.4]} 10... a5 {[%clk 0:03:06.9]} 11. O-O
{[%clk 0:02:52.2]} 11... a4 {[%clk 0:03:06.4]} 12. Rac1 {[%clk 0:02:50.4]} 12...
Be6 {[%clk 0:03:06.2]} 13. Bd4 {[%clk 0:02:48]} 13... Nd7 {[%clk 0:03:06.4]} 14.
Bxg7 {[%clk 0:02:44.1]} 14... Kxg7 {[%clk 0:03:07.3]} 15. b3 {[%clk 0:02:43]}
15... axb3 {[%clk 0:03:05.4]} 16. axb3 {[%clk 0:02:43.9]} 16... Qb6 {[%clk
0:03:03.8]} 17. Nb5 {[%clk 0:02:40.4]} 17... Kg8 {[%clk 0:02:57.2]} 18. h4
{[%clk 0:02:38.7]} 18... Nc5 {[%clk 0:02:54.6]} 19. Qe3 {[%clk 0:02:38.6]} 19...
Ra2 {[%clk 0:02:51.4]} 20. Rfe1 {[%clk 0:02:32.1]} 20... Rb2 {[%clk 0:02:40.6]}
21. Rc3 {[%clk 0:02:29.6]} 21... Ra8 {[%clk 0:02:37.9]} 22. h5 {[%clk
0:02:20.1]} 22... Raa2 {[%clk 0:02:37]} 23. h6 {[%clk 0:02:19.7]} 23... f6
{[%clk 0:02:17.1]} 24. f3 {[%clk 0:01:54.7]} 24... Qa5 {[%clk 0:02:03.2]} 25.
Bf1 {[%clk 0:01:47.2]} 25... Bd7 {[%clk 0:01:58.9]} 26. e5 {[%clk 0:01:31.4]}
26... fxe5 {[%clk 0:01:51.5]} 27. Qg5 {[%clk 0:01:31.7]} 27... Kf7 {[%clk
0:01:49.1]} 28. Rce3 {[%clk 0:01:24.2]} 28... Rxb3 {[%clk 0:01:46.1]} 29. Rxe5
{[%clk 0:00:55.8]} 29... dxe5 {[%clk 0:01:37.1]} 30. Rxe5 {[%clk 0:00:56.7]}
30... Ne6 {[%clk 0:01:35.8]} 31. Rxe6 {[%clk 0:00:21.9]} 31... Bxe6 {[%clk
0:01:31.2]} 32. Qf4+ {[%clk 0:00:21.6]} 32... Bf5 {[%clk 0:01:30.8]} 33. c5
{[%clk 0:00:19.2]} 33... Rb4 {[%clk 0:01:16.5]} 34. Qe5 {[%clk 0:00:13.6]} 34...
Ra1 {[%clk 0:01:13.1]} 35. Qg7+ {[%clk 0:00:11]} 35... Ke6 {[%clk 0:01:09.2]}
36. Qg8+ {[%clk 0:00:11.4]} 36... Kf6 {[%clk 0:01:05.6]} 37. Qg7+ {[%clk
0:00:08.9]} 37... Kg5 {[%clk 0:01:06]} 38. Qxe7+ {[%clk 0:00:08.9]} 38... Kh5
{[%clk 0:01:03.3]} 39. g4+ {[%clk 0:00:03.4]} 39... Bxg4 {[%clk 0:00:56.6]} 40.
fxg4+ {[%clk 0:00:01.5]} 40... Rxg4+ {[%clk 0:00:57.5]} 41. Kh2 {[%clk
0:00:01.9]} 41... Qd2+ {[%clk 0:00:55.3]} 42. Kh3 {[%clk 0:00:02.4]} 42... Rxf1
{[%clk 0:00:49.7]} 43. Qe5+ {[%clk 0:00:01.6]} 43... Rf5 {[%clk 0:00:49.4]} 0-1

[Event "Early-Titled-Tuesday-Blitz-April-02-2024"]
[Site "Chess.com"]
[Date "2024.04.02"]
[Round "2"]
[White "Firouzja2003"]
[Black "xasid81"]
[Result "1-0"]
[WhiteElo "3113"]
[BlackElo "2656"]
[TimeControl "180+1"]
[EndTime "8:17:25 PDT"]
[Termination "Firouzja2003 won by resignation"]

1. e4 {[%clk 0:02:51.2]} 1... c6 {[%clk 0:02:40.7]} 2. d4 {[%clk 0:02:50.6]}
2... d5 {[%clk 0:02:40.8]} 3. e5 {[%clk 0:02:51.4]} 3... c5 {[%clk 0:02:39.8]}
4. dxc5 {[%clk 0:02:49.3]} 4... e6 {[%clk 0:02:38.3]} 5. Qg4 {[%clk 0:02:50]}
5... Nd7 {[%clk 0:02:33.6]} 6. Nf3 {[%clk 0:02:50.4]} 6... Nxc5 {[%clk
0:02:32.4]} 7. Nc3 {[%clk 0:02:50.5]} 7... h5 {[%clk 0:02:30.1]} 8. Qf4 {[%clk
0:02:50.7]} 8... Ne7 {[%clk 0:02:28.1]} 9. Be3 {[%clk 0:02:50.7]} 9... Ng6
{[%clk 0:02:25.9]} 10. Qg3 {[%clk 0:02:50.9]} 10... Ne4 {[%clk 0:02:21.1]} 11.
Nxe4 {[%clk 0:02:43.9]} 11... dxe4 {[%clk 0:02:22]} 12. Bb5+ {[%clk 0:02:44.1]}
12... Bd7 {[%clk 0:02:21.7]} 13. O-O-O {[%clk 0:02:44.3]} 13... Bxb5 {[%clk
0:02:18.4]} 14. Rxd8+ {[%clk 0:02:44.6]} 14... Rxd8 {[%clk 0:02:19.3]} 15. Ng5
{[%clk 0:02:41.6]} 15... h4 {[%clk 0:02:05.7]} 16. Qg4 {[%clk 0:02:41.3]} 16...
Nxe5 {[%clk 0:02:01.4]} 17. Qxe4 {[%clk 0:02:41.2]} 17... Bd6 {[%clk 0:01:53.7]}
18. Qxb7 {[%clk 0:01:58.7]} 18... Bc6 {[%clk 0:01:50.9]} 19. Qxa7 {[%clk
0:01:59.1]} 19... h3 {[%clk 0:01:47.1]} 20. f4 {[%clk 0:01:49.4]} 20... hxg2
{[%clk 0:01:40.7]} 21. Rd1 {[%clk 0:01:49.3]} 21... Rd7 {[%clk 0:01:07.8]} 22.
Qa6 {[%clk 0:01:43.6]} 22... Ng4 {[%clk 0:01:01.3]} 23. Rxd6 {[%clk 0:00:43.3]}
23... Nxe3 {[%clk 0:00:28.1]} 24. Qc8+ {[%clk 0:00:42.2]} 24... Ke7 {[%clk
0:00:27.5]} 25. Rxd7+ {[%clk 0:00:42.9]} 25... Bxd7 {[%clk 0:00:26.3]} 26. Qc5+
{[%clk 0:00:42.8]} 26... Ke8 {[%clk 0:00:24.7]} 27. Qxe3 {[%clk 0:00:42.9]}
27... Rxh2 {[%clk 0:00:24.8]} 28. Nf3 {[%clk 0:00:42.5]} 28... Rh3 {[%clk
0:00:21]} 29. Qf2 {[%clk 0:00:41.4]} 29... Rxf3 {[%clk 0:00:18.3]} 30. Qxg2
{[%clk 0:00:41.7]} 30... Rxf4 {[%clk 0:00:18.4]} 31. Qxg7 {[%clk 0:00:39.1]}
31... Rf5 {[%clk 0:00:18.6]} 32. b4 {[%clk 0:00:38]} 32... Bc6 {[%clk
0:00:18.5]} 33. c4 {[%clk 0:00:38.1]} 33... Rf3 {[%clk 0:00:17.8]} 34. b5 {[%clk
0:00:38.3]} 34... Be4 {[%clk 0:00:17.4]} 35. Qd4 {[%clk 0:00:33.7]} 35... f5
{[%clk 0:00:16.9]} 36. c5 {[%clk 0:00:33.6]} 36... Rd3 {[%clk 0:00:17.3]} 37.
Qh8+ {[%clk 0:00:33.6]} 37... Kf7 {[%clk 0:00:17.2]} 38. c6 {[%clk 0:00:34.2]}
38... Rd5 {[%clk 0:00:16.7]} 39. Qc3 {[%clk 0:00:29]} 39... Rd8 {[%clk
0:00:15.5]} 40. b6 {[%clk 0:00:27.1]} 40... Rc8 {[%clk 0:00:15.1]} 41. b7 {[%clk
0:00:27.4]} 41... Rxc6 {[%clk 0:00:14.6]} 42. Qxc6 {[%clk 0:00:27.5]} 1-0

[Event "Early-Titled-Tuesday-Blitz-April-02-2024"]
[Site "Chess.com"]
[Date "2024.04.02"]
[Round "2"]
[White "Manukyan_Artak"]
[Black "Oleksandr_Bortnyk"]
[Result "0-1"]
[WhiteElo "2545"]
[BlackElo "3040"]
[TimeControl "180+1"]
[EndTime "8:17:26 PDT"]
[Termination "Oleksandr_Bortnyk won on time"]

1. e4 {[%clk 0:03:00.9]} 1... g6 {[%clk 0:02:58.2]} 2. d4 {[%clk 0:03:00.8]}
2... Bg7 {[%clk 0:02:58.4]} 3. c4 {[%clk 0:03:01.1]} 3... d6 {[%clk 0:02:52.6]}
4. Nc3 {[%clk 0:03:01]} 4... Nf6 {[%clk 0:02:50.7]} 5. f3 {[%clk 0:03:00.6]}
5... a6 {[%clk 0:02:49]} 6. Bg5 {[%clk 0:02:58.7]} 6... c5 {[%clk 0:02:40.1]} 7.
dxc5 {[%clk 0:02:57.1]} 7... Qa5 {[%clk 0:02:39.5]} 8. Qd2 {[%clk 0:02:56]} 8...
Qxc5 {[%clk 0:02:32.7]} 9. Nd5 {[%clk 0:02:51.4]} 9... Nxd5 {[%clk 0:02:22.9]}
10. cxd5 {[%clk 0:02:47.5]} 10... Qb6 {[%clk 0:02:20]} 11. Rb1 {[%clk
0:02:37.1]} 11... Bd4 {[%clk 0:02:17.4]} 12. Ne2 {[%clk 0:02:29.1]} 12... Bf2+
{[%clk 0:02:17.5]} 13. Kd1 {[%clk 0:02:29.5]} 13... Nd7 {[%clk 0:02:18.4]} 14.
Nc3 {[%clk 0:02:26.5]} 14... Ne5 {[%clk 0:02:15]} 15. a4 {[%clk 0:02:12]} 15...
Bd7 {[%clk 0:02:09.2]} 16. a5 {[%clk 0:02:03.7]} 16... Qa7 {[%clk 0:02:00.2]}
17. b3 {[%clk 0:01:50.5]} 17... Rc8 {[%clk 0:01:58.8]} 18. Na4 {[%clk
0:01:45.9]} 18... h6 {[%clk 0:01:33.1]} 19. Bf4 {[%clk 0:01:44.5]} 19... g5
{[%clk 0:01:26.9]} 20. Bxe5 {[%clk 0:01:39.3]} 20... dxe5 {[%clk 0:01:27.3]} 21.
d6 {[%clk 0:01:34.4]} 21... Be3 {[%clk 0:01:03.4]} 22. Qd5 {[%clk 0:01:27]}
22... exd6 {[%clk 0:00:43.2]} 23. Bc4 {[%clk 0:01:14.8]} 23... Be6 {[%clk
0:00:39.8]} 24. Qd3 {[%clk 0:01:14.7]} 24... O-O {[%clk 0:00:32.1]} 25. Bxe6
{[%clk 0:01:10]} 25... fxe6 {[%clk 0:00:33]} 26. Ke2 {[%clk 0:01:10.1]} 26... g4
{[%clk 0:00:27.2]} 27. Rhd1 {[%clk 0:00:44.9]} 27... Bd4 {[%clk 0:00:21.4]} 28.
Rdc1 {[%clk 0:00:30.8]} 28... gxf3+ {[%clk 0:00:15.7]} 29. gxf3 {[%clk
0:00:26.5]} 29... Kh8 {[%clk 0:00:14.6]} 30. Qd2 {[%clk 0:00:25.2]} 30... Kh7
{[%clk 0:00:14.1]} 0-1

[Event "Early-Titled-Tuesday-Blitz-April-02-2024"]
[Site "Chess.com"]
[Date "2024.04.02"]
[Round "2"]
[White "IsuruAlahakoon"]
[Black "NewBornNow"]
[Result "0-1"]
[WhiteElo "2401"]
[BlackElo "2818"]
[TimeControl "180+1"]
[EndTime "8:17:27 PDT"]
[Termination "NewBornNow won by resignation"]

1. Nf3 {[%clk 0:03:00.9]} 1... d5 {[%clk 0:02:57.3]} 2. e3 {[%clk 0:02:59.3]}
2... e6 {[%clk 0:02:50.7]} 3. b3 {[%clk 0:02:58.5]} 3... c5 {[%clk 0:02:49.9]}
4. Bb2 {[%clk 0:02:59]} 4... Nc6 {[%clk 0:02:49.9]} 5. Bb5 {[%clk 0:02:55.1]}
5... Ne7 {[%clk 0:02:48.5]} 6. c4 {[%clk 0:02:52.1]} 6... a6 {[%clk 0:02:47.8]}
7. Ba4 {[%clk 0:02:48.8]} 7... Bd7 {[%clk 0:02:45.2]} 8. O-O {[%clk 0:02:46.9]}
8... b5 {[%clk 0:02:34.7]} 9. cxb5 {[%clk 0:02:44.8]} 9... Nb4 {[%clk
0:02:34.7]} 10. bxa6 {[%clk 0:02:36.1]} 10... Bxa4 {[%clk 0:02:33.1]} 11. bxa4
{[%clk 0:02:37]} 11... Nd3 {[%clk 0:02:32.6]} 12. Bc3 {[%clk 0:02:34]} 12... Nc6
{[%clk 0:02:25.4]} 13. Qe2 {[%clk 0:02:27.7]} 13... c4 {[%clk 0:02:24.2]} 14.
Ne1 {[%clk 0:02:13.7]} 14... Nxe1 {[%clk 0:02:22.1]} 15. Rxe1 {[%clk 0:02:11.9]}
15... Rxa6 {[%clk 0:02:21.6]} 16. d3 {[%clk 0:02:11]} 16... Rxa4 {[%clk
0:02:20.1]} 17. Qc2 {[%clk 0:02:03.6]} 17... Qa8 {[%clk 0:02:17.8]} 18. Bb2
{[%clk 0:01:53.4]} 18... Nb4 {[%clk 0:02:14.5]} 19. Qd2 {[%clk 0:01:49.6]} 19...
Nxd3 {[%clk 0:02:13.3]} 20. Nc3 {[%clk 0:01:50.2]} 20... Bb4 {[%clk 0:02:07.8]}
21. a3 {[%clk 0:01:44.4]} 21... Nxb2 {[%clk 0:01:56.8]} 22. Qxb2 {[%clk
0:01:41.3]} 22... Bxc3 {[%clk 0:01:56.8]} 23. Qxc3 {[%clk 0:01:39.1]} 23... O-O
{[%clk 0:01:55.9]} 24. h4 {[%clk 0:01:33.8]} 24... h6 {[%clk 0:01:55.3]} 25.
Reb1 {[%clk 0:01:26.5]} 25... Rb8 {[%clk 0:01:53.7]} 26. Rxb8+ {[%clk
0:01:16.6]} 26... Qxb8 {[%clk 0:01:53.4]} 27. Qc2 {[%clk 0:01:17.3]} 27... Qa7
{[%clk 0:01:43.6]} 28. Qb2 {[%clk 0:01:13.1]} 28... h5 {[%clk 0:01:38.9]} 29. g3
{[%clk 0:01:07]} 29... g6 {[%clk 0:01:38.7]} 30. Kg2 {[%clk 0:00:52.1]} 30...
Ra6 {[%clk 0:01:32.3]} 31. Qd4 {[%clk 0:00:33.6]} 31... Qxd4 {[%clk 0:01:30.1]}
32. exd4 {[%clk 0:00:34.5]} 32... Kf8 {[%clk 0:01:25.1]} 33. Kf3 {[%clk
0:00:33.1]} 33... Ke7 {[%clk 0:01:24.9]} 34. Ke3 {[%clk 0:00:33.6]} 34... Kd6
{[%clk 0:01:24.1]} 35. Kd2 {[%clk 0:00:31.7]} 35... Rb6 {[%clk 0:01:22.8]} 36.
Kc3 {[%clk 0:00:27.7]} 36... Rb3+ {[%clk 0:01:22.4]} 37. Kc2 {[%clk 0:00:27.1]}
37... Kc6 {[%clk 0:01:22.6]} 38. a4 {[%clk 0:00:19.5]} 38... Kb6 {[%clk
0:01:22.5]} 39. Ra2 {[%clk 0:00:12.2]} 39... Ka5 {[%clk 0:01:21.4]} 40. Kd2
{[%clk 0:00:11.5]} 40... Rd3+ {[%clk 0:01:21.1]} 41. Ke2 {[%clk 0:00:12]} 41...
Rxd4 {[%clk 0:01:21.1]} 42. Rb2 {[%clk 0:00:12.6]} 42... c3 {[%clk 0:01:18.2]}
43. Rb3 {[%clk 0:00:10.4]} 43... c2 {[%clk 0:01:14]} 44. Rc3 {[%clk 0:00:09.1]}
44... Rc4 {[%clk 0:01:14.1]} 45. Rxc4 {[%clk 0:00:08]} 45... dxc4 {[%clk
0:01:14.3]} 46. Kd2 {[%clk 0:00:08.9]} 46... Kxa4 {[%clk 0:01:14.4]} 47. Kxc2
{[%clk 0:00:09.8]} 47... Kb4 {[%clk 0:01:13.8]} 48. Kb2 {[%clk 0:00:09.2]} 48...
c3+ {[%clk 0:01:13.9]} 49. Kc2 {[%clk 0:00:10.1]} 49... Kc4 {[%clk 0:01:14.2]}
0-1